bitfinex/quotes_ETHUSD_20250507
["timestamp","ask_amount","ask_price","bid_price","bid_amount"]
[1746658354960,5.49964252,1818.3,1818.2,0.51041376]
[1746658355162,5.49964252,1818.3,1818.2,0.5110074]
[1746658355362,5.49964252,1818.3,1818.2,1.02109661]
[1746658355966,5.49964252,1818.3,1818.2,1.32727053]
[1746658356766,5.72053419,1818.3,1818.2,1.02109661]
[1746658357068,5.72053419,1818.3,1818.2,4.69804476]
[1746658358439,5.72053419,1818.3,1818.2,4.18703736]
[1746658359070,5.72053419,1818.3,1818.2,0.51008921]
[1746658359257,5.499945,1818.2,1818.1,3.67694815]
[1746658359660,5.72474278,1818.2,1818.1,3.67694815]
[1746658361572,5.50024751,1818.1,1818.0,0.81606863]
[1746658361768,5.50024751,1818.1,1818.0,0.51004289]
[1746658361951,5.50024751,1818.1,1818.0,1.02012487]
[1746658362267,5.72504529,1818.1,1818.0,1.02012487]
[1746658362470,5.72504529,1818.1,1818.0,0.51008198]
[1746658365076,0.22479778,1818.1,1818.0,0.51008198]
[1746658365541,0.22479778,1818.1,1818.0,1.02001266]
[1746658365744,10.99972415,1818.3,1818.0,1.02001266]
[1746658365989,0.22417286,1818.1,1818.0,0.50993068]
[1746658366274,0.22417286,1818.1,1818.0,1.58847157]
[1746658366478,5.49982019,1818.3,1818.0,7.65398703]
[1746658366775,5.49952829,1818.4,1818.1,2.37210172]
[1746658367071,5.49952829,1818.4,1818.1,2.67814261]
[1746658367371,5.49968429,1818.3,1818.1,3.18807329]
[1746658367674,5.49968429,1818.3,1818.2,0.50996254]
[1746658368044,5.49952829,1818.4,1818.2,0.50996254]
[1746658368370,5.49952829,1818.4,1818.3,0.50996254]
[1746658368783,5.72440418,1818.4,1818.3,0.50996254]
[1746658368987,0.22487589,1818.4,1818.3,3.20400172]
[1746658369282,0.22487589,1818.4,1818.3,0.50996254]
[1746658369283,5.49934007,1818.4,1818.3,0.50996254]
[1746658369454,5.72484087,1818.4,1818.3,0.50996254]
[1746658370099,0.2255008,1818.4,1818.3,0.50996254]
[1746658370688,0.2255008,1818.4,1818.3,0.81600343]
[1746658371006,0.2255008,1818.4,1818.3,1.32593411]
[1746658371186,5.49885567,1818.6,1818.3,1.32593411]
[1746658371392,5.72478322,1818.5,1818.4,0.50996254]
[1746658371591,0.2255008,1818.5,1818.4,0.50996254]
[1746658372607,5.72453846,1818.5,1818.4,0.50996254]
[1746658375498,0.2255008,1818.5,1818.4,0.50996254]
[1746658376202,5.72453846,1818.5,1818.4,0.50996254]
[1746658380222,0.2255008,1818.5,1818.4,0.50996254]
[1746658380622,0.2255008,1818.5,1818.4,1.01983845]
[1746658381031,0.2255008,1818.5,1818.4,1.32574167]
[1746658382336,0.2255008,1818.5,1818.4,2.13164167]
[1746658382624,5.49857786,1818.7,1818.4,2.13164167]
[1746658382834,0.22963976,1818.6,1818.4,7.63088206]
[1746658383031,0.22963976,1818.6,1818.5,0.50996254]
[1746658383239,5.49857786,1818.7,1818.5,0.50996254]
[1746658383425,0.22963976,1818.6,1818.5,1.01983845]
[1746658383620,5.49857786,1818.7,1818.5,0.50987591]
[1746658383787,0.22963976,1818.6,1818.5,0.50987591]
[1746658383991,5.49857786,1818.7,1818.5,1.32571689]
[1746658384206,0.22963976,1818.6,1818.5,1.32571689]
[1746658384435,5.49857786,1818.7,1818.5,1.32571689]
[1746658384635,0.22963976,1818.6,1818.5,1.32571689]
[1746658384787,5.49857786,1818.7,1818.5,0.81577913]
[1746658384992,0.22963976,1818.6,1818.5,0.81577913]
[1746658385192,5.49857786,1818.7,1818.5,1.32587462]
[1746658385495,5.49857786,1818.7,1818.6,0.51009549]
[1746658388941,5.49823764,1818.8,1818.6,0.51009549]
[1746658389406,5.49823764,1818.8,1818.7,0.51009549]
[1746658389602,5.49801664,1818.9,1818.7,0.51009549]
[1746658390329,5.49801664,1818.9,1818.6,0.50987591]
[1746658390530,5.49801664,1818.9,1818.6,6.00859211]
[1746658390902,5.49801664,1818.9,1818.7,0.8029]
[1746658391101,5.49801664,1818.9,1818.7,1.31250593]
[1746658391403,5.49816882,1818.8,1818.5,5.63263918]
[1746658391833,5.49816882,1818.8,1818.6,0.81541617]
[1746658392423,5.49816882,1818.8,1818.7,0.5096339]
[1746658394837,5.49801058,1818.9,1818.7,0.5096339]
[1746658395330,5.49801058,1818.9,1818.7,1.01930598]
[1746658395534,5.49769397,1819.0,1818.8,0.5096339]
[1746658395734,5.49733274,1819.1,1818.8,1.2739339]
[1746658396050,5.49733274,1819.1,1818.9,0.5096339]
[1746658396406,5.49733274,1819.1,1818.8,0.7643]
[1746658396607,5.49733274,1819.1,1818.8,1.27397208]
[1746658396932,5.49761345,1819.0,1818.8,1.57975435]
[1746658397345,5.49761345,1819.0,1818.9,0.50981043]
[1746658397838,7.37010807,1819.0,1818.9,0.50981043]
[1746658398336,5.49782835,1818.9,1818.8,0.81545435]
[1746658398505,5.49782835,1818.9,1818.8,0.50967208]
[1746658398704,5.49782835,1818.9,1818.6,0.81545435]
[1746658398705,5.49835867,1818.8,1818.6,0.81545435]
[1746658398933,5.49843294,1818.7,1818.6,4.18662023]
[1746658399317,5.73306915,1818.7,1818.6,4.6964322]
[1746658399637,5.73306915,1818.7,1818.6,4.18676012]
[1746658401345,5.73306915,1818.7,1818.6,1.01948405]
[1746658401544,5.73306915,1818.7,1818.6,1.32536393]
[1746658403953,0.23463621,1818.7,1818.6,1.32536393]
[1746658405068,0.23463621,1818.7,1818.6,3.18750311]
[1746658405220,5.49799066,1818.9,1818.6,3.18750311]
[1746658405420,5.731934,1818.8,1818.6,3.18750311]
[1746658405756,5.731934,1818.8,1818.7,0.50967208]
[1746658405957,5.731934,1818.8,1818.7,1.32536393]
[1746658406967,6.561834,1818.8,1818.7,1.32536393]
[1746658407664,5.731934,1818.8,1818.7,1.32536393]
[1746658409650,5.731934,1818.8,1818.7,1.01948405]
[1746658410765,5.731934,1818.8,1818.7,1.32536393]
[1746658411865,0.23377753,1818.8,1818.7,1.32536393]
[1746658412865,5.49799066,1818.9,1818.7,1.32536393]
[1746658413039,0.21499858,1818.8,1818.7,1.32536393]
[1746658414085,0.21499858,1818.8,1818.7,1.38034617]
[1746658414380,5.49678279,1819.3,1818.9,6.32911169]
[1746658414583,10.99300627,1819.4,1819.0,7.92429614]
[1746658414871,5.49645797,1819.4,1819.1,0.81555196]
[1746658415082,0.19629416,1819.3,1819.1,2.3883058]
[1746658415280,0.19629416,1819.3,1819.2,7.86887287]
[1746658415573,5.49616225,1819.5,1819.2,7.86887287]
[1746658415770,0.19785717,1819.3,1819.2,7.41402489]
[1746658415934,5.4958713,1819.6,1819.2,7.41402489]
[1746658416136,0.20027915,1819.3,1819.2,7.41402489]
[1746658416372,10.99184742,1819.6,1819.2,7.92392581]
[1746658416671,5.49603429,1819.5,1819.2,8.68457445]
[1746658416834,0.20027915,1819.4,1819.3,0.50990092]
[1746658417037,5.49607497,1819.5,1819.3,0.50990092]
[1746658417259,0.20027915,1819.4,1819.3,0.50990092]
[1746658417573,0.20027915,1819.4,1819.3,1.019573]
[1746658417876,5.49585059,1819.6,1819.3,1.019573]
[1746658418056,0.20106026,1819.5,1819.4,0.50990092]
[1746658418603,0.20106026,1819.5,1819.4,3.1550401]
[1746658418876,5.4955922,1819.7,1819.4,8.70631414]
[1746658419063,0.20106026,1819.6,1819.4,8.70631414]
[1746658419240,5.4955922,1819.7,1819.5,0.50990092]
[1746658419440,0.20106026,1819.6,1819.5,0.50990092]
[1746658419639,5.4955922,1819.7,1819.5,0.50990092]
[1746658419881,0.20106026,1819.6,1819.5,0.50990092]
[1746658420084,5.4955922,1819.7,1819.5,0.50990092]
[1746658420293,0.20106026,1819.6,1819.5,0.50990092]
[1746658420764,10.99127543,1819.7,1819.5,0.50990092]
[1746658420973,5.4955922,1819.7,1819.4,3.66471218]
[1746658421191,0.20106026,1819.6,1819.4,3.66471218]
[1746658421484,5.4955922,1819.7,1819.4,3.66471218]
[1746658421691,0.20106026,1819.6,1819.4,3.1550401]
[1746658421989,5.4955922,1819.7,1819.4,3.1550401]
[1746658422190,0.20106026,1819.5,1819.4,3.1550401]
[1746658422362,5.4955922,1819.7,1819.4,3.1550401]
[1746658422569,0.20106026,1819.5,1819.4,3.1550401]
[1746658422769,5.4955922,1819.7,1819.4,3.1550401]
[1746658422966,0.20106026,1819.5,1819.4,3.1550401]
[1746658423182,5.49592674,1819.6,1819.4,2.3720401]
[1746658423358,5.69707564,1819.5,1819.4,0.50990092]
[1746658423560,5.69707564,1819.5,1819.3,3.50990092]
[1746658424398,0.20106026,1819.5,1819.3,9.00642409]
[1746658424606,0.20106026,1819.5,1819.4,0.50990092]
[1746658424962,0.20106026,1819.5,1819.3,3.50990092]
[1746658425187,0.20106026,1819.5,1819.3,9.00651048]
[1746658425392,0.20106026,1819.5,1819.4,1.86213918]
[1746658425695,0.20106026,1819.5,1819.4,2.3720401]
[1746658426194,0.20106026,1819.5,1819.4,1.86213918]
[1746658429296,0.20652934,1819.5,1819.4,2.3720401]
[1746658429497,5.49571617,1819.6,1819.4,2.3720401]
[1746658429678,0.20652934,1819.5,1819.4,2.3720401]
[1746658430692,0.20652934,1819.5,1819.4,1.86213918]
[1746658431110,0.20652934,1819.5,1819.4,2.3720401]
[1746658431581,5.49588313,1819.6,1819.4,2.3720401]
[1746658431780,0.20652934,1819.5,1819.4,1.86213918]
[1746658432182,0.20652934,1819.5,1819.4,2.3720401]
[1746658433201,0.20652934,1819.5,1819.4,7.86835756]
[1746658433389,0.20652934,1819.5,1819.4,8.68055756]
[1746658433589,5.49550113,1819.7,1819.4,3.23919489]
[1746658433799,0.20652934,1819.5,1819.4,3.1842401]
[1746658433988,5.49550113,1819.7,1819.4,3.1842401]
[1746658434190,0.20652934,1819.5,1819.4,3.1842401]
[1746658434376,5.49550113,1819.7,1819.4,3.1842401]
[1746658434597,0.20652934,1819.5,1819.4,3.1842401]
[1746658434797,5.49550113,1819.7,1819.4,3.1842401]
[1746658434993,0.20652934,1819.5,1819.4,3.1842401]
[1746658435197,5.49550113,1819.7,1819.4,3.1842401]
[1746658435407,0.20707607,1819.5,1819.4,3.1842401]
[1746658435608,5.49550113,1819.7,1819.4,3.1842401]
[1746658435806,5.49550113,1819.7,1819.4,0.50990092]
[1746658435807,0.20707607,1819.5,1819.4,0.50990092]
[1746658436011,5.49601538,1819.5,1819.4,0.50990092]
[1746658436200,0.20691986,1819.5,1819.3,4.01832922]
[1746658436806,0.20691986,1819.5,1819.4,1.86213918]
[1746658438627,0.20691986,1819.5,1819.4,2.3720401]
[1746658438913,5.70293524,1819.5,1819.4,2.3720401]
[1746658439413,0.20691986,1819.5,1819.4,1.86213918]
[1746658440379,0.20691986,1819.5,1819.4,2.3720401]
[1746658441101,5.70293524,1819.5,1819.4,2.3720401]
[1746658441301,0.20691986,1819.5,1819.4,2.3720401]
[1746658441809,0.20691986,1819.5,1819.4,2.67763505]
[1746658442111,0.20691986,1819.5,1819.4,3.18606335]
[1746658442410,5.70293524,1819.5,1819.4,3.18606335]
[1746658442792,7.68703629,1819.5,1819.4,1.32392417]
[1746658443016,7.68703629,1819.5,1819.4,0.30559495]
[1746658443785,7.68703629,1819.5,1819.1,0.81598327]
[1746658443786,5.49692172,1819.2,1819.1,0.81598327]
[1746658444014,5.49692172,1819.2,1819.1,1.32639845]
[1746658444177,5.70243574,1819.2,1819.1,1.32639845]
[1746658445228,5.70243574,1819.2,1819.1,1.0208035]
[1746658446552,5.70243574,1819.2,1819.1,0.51038832]
[1746658449510,0.20551402,1819.2,1819.1,2.3725275]
[1746658449906,0.20551402,1819.2,1819.1,10.92472248]
[1746658450096,5.49589927,1819.6,1819.2,8.49674239]
[1746658450302,0.20395161,1819.5,1819.4,1.86213918]
[1746658451030,0.20395161,1819.5,1819.4,2.3725275]
[1746658451830,5.69996699,1819.5,1819.4,2.3725275]
[1746658452633,0.20395161,1819.5,1819.4,2.3725275]
[1746658452807,0.20395161,1819.5,1819.4,2.88294268]
[1746658453004,11.75929272,1819.8,1819.4,8.37914564]
[1746658453206,0.2048891,1819.5,1819.4,8.67305732]
[1746658453401,5.49524765,1819.8,1819.4,14.16926028]
[1746658453607,0.20481099,1819.5,1819.4,6.81091814]
[1746658453926,6.24595477,1820.0,1819.6,6.29992272]
[1746658454114,5.49475477,1820.0,1819.7,7.35755003]
[1746658454317,5.49475477,1820.0,1819.8,0.50925013]
[1746658454835,5.49475477,1820.0,1819.7,1.86213918]
[1746658455130,5.49475477,1820.0,1819.7,2.37255436]
[1746658455337,5.49510935,1819.8,1819.7,0.51041518]
[1746658455832,5.49571334,1819.6,1819.5,0.81617897]
[1746658456245,5.49571334,1819.6,1819.5,0.51041518]
[1746658456743,5.49601538,1819.5,1819.3,2.67831815]
[1746658457206,5.49601538,1819.5,1819.4,0.50978528]
[1746658457741,5.49601538,1819.5,1819.4,4.18673343]
[1746658458334,5.49601538,1819.5,1819.4,4.69714861]
[1746658458838,10.99166287,1819.6,1819.4,4.69714861]
[1746658459042,5.49571334,1819.6,1819.4,4.69714861]
[1746658459230,0.20660735,1819.5,1819.4,4.18736333]
[1746658459940,0.20660735,1819.5,1819.4,4.69712721]
[1746658460244,0.20660735,1819.5,1819.4,1.02017906]
[1746658461443,5.49571334,1819.6,1819.4,1.02017906]
[1746658461743,0.18939007,1819.5,1819.4,1.02017906]
[1746658463261,6.46040545,1819.5,1819.4,1.02017906]
[1746658463440,7.65601733,1819.5,1819.4,1.02017906]
[1746658463954,7.65601733,1819.5,1819.4,0.51041518]
[1746658464125,5.49631746,1819.4,1819.3,3.67694815]
[1746658464324,5.6855515,1819.4,1819.3,3.67694815]
[1746658465013,6.4521515,1819.4,1819.3,3.67694815]
[1746658465345,7.76652938,1819.4,1819.3,3.67694815]
[1746658465553,5.49666343,1819.3,1819.1,3.67694815]
[1746658465928,5.49666343,1819.3,1819.2,0.51062946]
[1746658469124,5.68496017,1819.3,1819.2,0.51062946]
[1746658470169,0.18829674,1819.3,1819.2,0.51062946]
[1746658470349,5.68491631,1819.3,1819.2,0.51062946]
[1746658472871,0.18829674,1819.3,1819.2,0.51062946]
[1746658474272,5.68491631,1819.3,1819.2,0.51062946]
[1746658474567,5.68491631,1819.3,1819.2,1.02199756]
[1746658474973,0.18829674,1819.3,1819.2,1.02199756]
[1746658475479,0.18829674,1819.3,1819.2,2.88413674]
[1746658475778,5.496099,1819.5,1819.2,11.38105846]
[1746658475947,0.18587517,1819.3,1819.2,11.38105846]
[1746658476145,5.496099,1819.5,1819.2,11.68775603]
[1746658476347,0.18587517,1819.3,1819.2,11.17712657]
[1746658476571,5.496099,1819.5,1819.2,11.17712657]
[1746658476772,0.18587517,1819.3,1819.2,5.68020485]
[1746658476970,5.49661957,1819.3,1819.2,3.30669757]
[1746658477265,0.18587517,1819.3,1819.2,0.30669757]
[1746658477451,0.18587517,1819.3,1819.2,0.81799104]
[1746658478069,0.18587517,1819.3,1819.2,7.94034987]
[1746658478466,0.18587517,1819.3,1819.2,7.6336523]
[1746658480051,0.18587517,1819.3,1819.2,1.02261927]
[1746658484666,6.32105662,1819.4,1819.2,1.02261927]
[1746658484838,0.17069806,1819.3,1819.2,0.5113258]
[1746658485040,0.17069806,1819.3,1819.2,0.81825265]
[1746658485340,0.17069806,1819.3,1819.2,1.32982791]
[1746658488378,0.17069806,1819.3,1819.2,1.33025442]
[1746658488568,0.17069806,1819.3,1819.2,7.94223838]
[1746658488980,0.17069806,1819.3,1819.2,7.94297249]
[1746658489880,5.49632477,1819.4,1819.2,7.94297249]
[1746658490069,0.17069807,1819.3,1819.2,7.94297249]
[1746658497081,0.17069807,1819.3,1819.2,9.80511167]
[1746658497283,5.49644672,1819.4,1819.2,9.80511167]
[1746658497498,0.17108866,1819.3,1819.2,9.80511167]
[1746658497990,5.66770823,1819.3,1819.2,7.94297249]
[1746658498284,0.17108866,1819.3,1819.2,7.94297249]
[1746658499266,0.93758866,1819.3,1819.2,7.94297249]
[1746658500793,6.43420823,1819.3,1819.2,7.94297249]
[1746658500993,0.17108866,1819.3,1819.2,7.94297249]
[1746658503830,0.17108866,1819.3,1819.2,9.80511167]
[1746658504112,6.26263659,1819.5,1819.2,9.80511167]
[1746658504280,0.17116677,1819.4,1819.2,9.80511167]
[1746658504619,0.17116677,1819.4,1819.3,0.81895814]
[1746658504917,5.66748423,1819.4,1819.3,1.33192522]
[1746658506486,0.17116677,1819.4,1819.3,1.33192522]
[1746658507334,5.66748423,1819.4,1819.3,1.33192522]
[1746658507791,0.17116677,1819.4,1819.3,1.33192522]
[1746658508113,0.17116677,1819.4,1819.3,7.95749693]
[1746658508312,5.49521756,1819.8,1819.3,11.01245908]
[1746658508516,0.17124489,1819.7,1819.4,11.14816647]
[1746658508827,5.49616901,1819.5,1819.3,7.44546654]
[1746658509027,6.28281746,1819.4,1819.3,6.62557171]
[1746658509183,0.95876039,1819.4,1819.3,6.62557171]
[1746658509519,0.95876039,1819.4,1819.3,7.13796097]
[1746658509520,0.17226039,1819.4,1819.3,7.13796097]
[1746658510024,0.17226039,1819.4,1819.3,6.62557171]
[1746658510313,0.17226039,1819.4,1819.3,7.13768291]
[1746658510510,0.17226039,1819.4,1819.3,4.2026471]
[1746658510813,0.17226039,1819.4,1819.3,4.50995898]
[1746658510978,0.17226039,1819.4,1819.3,5.02213899]
[1746658512627,0.17226039,1819.4,1819.3,1.33160309]
[1746658514351,7.06260761,1819.4,1819.3,1.33160309]
[1746658514561,7.06260761,1819.4,1819.3,0.81942308]
[1746658514853,7.06260761,1819.4,1819.3,0.30731188]
[1746658515156,7.06260761,1819.4,1819.3,3.24863678]
[1746658515308,7.06260761,1819.4,1819.3,2.9413249]
[1746658518746,5.49782835,1818.9,1818.8,3.69034583]
[1746658518960,5.66977629,1818.9,1818.8,3.69034583]
[1746658521866,5.66977629,1818.9,1818.7,6.62907337]
[1746658521867,11.16783945,1818.9,1818.7,6.62907337]
[1746658524784,11.16783945,1818.9,1818.6,6.36818501]
[1746658524785,5.66977629,1818.9,1818.6,6.36818501]
[1746658525085,11.16785525,1818.9,1818.6,6.36818501]
[1746658525289,11.16785525,1818.9,1818.8,1.86213918]
[1746658525290,0.17194794,1818.9,1818.8,1.86213918]
[1746658525475,0.17194794,1818.9,1818.8,2.68593918]
[1746658527196,5.66977629,1818.9,1818.8,2.68593918]
[1746658527396,5.66977629,1818.9,1818.7,3.69034583]
[1746658527567,5.49813063,1818.8,1818.7,3.69034583]
[1746658527765,5.39580914,1818.8,1818.7,3.69034583]
[1746658528897,0.1637436,1818.8,1818.7,3.69034583]
[1746658529068,5.66187423,1818.8,1818.6,6.37628501]
[1746658529268,5.66187423,1818.8,1818.6,6.43126571]
[1746658529495,5.66187423,1818.8,1818.6,6.37628501]
[1746658529701,0.1637436,1818.8,1818.6,6.43126571]
[1746658529889,0.1637436,1818.8,1818.6,6.37628501]
[1746658530200,5.66190082,1818.8,1818.6,6.37628501]
[1746658530495,5.49843294,1818.7,1818.6,6.37628501]
[1746658530669,5.49843294,1818.7,1818.6,8.55248501]
[1746658531082,5.66217654,1818.7,1818.6,8.55248501]
[1746658531394,5.66217654,1818.7,1818.6,6.69034583]
[1746658532112,5.66217654,1818.7,1818.6,3.69034583]
[1746658532279,6.85724992,1818.7,1818.6,3.69034583]
[1746658534322,0.1637436,1818.7,1818.6,5.55248501]
[1746658534521,0.1637436,1818.7,1818.6,6.30868501]
[1746658534712,5.49814843,1818.8,1818.6,6.30868501]
[1746658534913,0.16139859,1818.7,1818.6,6.30868501]
[1746658535220,0.16139859,1818.7,1818.6,14.8074203]
[1746658535423,0.16139859,1818.7,1818.6,11.11707447]
[1746658535626,5.49787447,1818.9,1818.6,11.11707447]
[1746658535931,0.16139859,1818.7,1818.6,5.61833918]
[1746658536131,5.49787447,1818.9,1818.6,5.61833918]
[1746658536438,5.49815443,1818.8,1818.6,5.61833918]
[1746658536639,5.66049115,1818.8,1818.6,5.61833918]
[1746658536930,0.16233672,1818.8,1818.6,5.61833918]
[1746658538389,0.16233672,1818.8,1818.6,3.0]
[1746658538735,5.49873529,1818.6,1818.5,3.69034583]
[1746658539166,5.66154102,1818.6,1818.4,4.44894583]
[1746658539333,5.49903766,1818.5,1818.4,3.99691814]
[1746658539733,6.69321553,1818.5,1818.4,3.69034583]
[1746658539954,6.85602126,1818.5,1818.4,3.69034583]
[1746658541360,5.66184339,1818.5,1818.4,3.69034583]
[1746658543273,5.66184339,1818.5,1818.2,3.0]
[1746658543274,5.49943663,1818.4,1818.2,3.0]
[1746658543491,5.66184339,1818.5,1818.2,3.0]
[1746658543690,0.16014757,1818.3,1818.2,3.0]
[1746658543864,10.9983494,1818.5,1818.2,3.0]
[1746658544055,0.16014757,1818.3,1818.2,3.30696495]
[1746658544255,5.49936223,1818.4,1818.2,3.30696495]
[1746658544486,0.16014757,1818.3,1818.2,3.30696495]
[1746658545983,5.49944687,1818.4,1818.2,3.30696495]
[1746658546392,5.65979009,1818.3,1818.2,3.30696495]
[1746658546767,0.16014757,1818.3,1818.2,3.30696495]
[1746658546967,0.16014757,1818.3,1818.2,3.0]
[1746658548054,5.65979009,1818.3,1818.2,3.0]
[1746658548259,5.499945,1818.2,1818.1,0.30700487]
[1746658548785,5.40923363,1818.2,1818.0,3.69034583]
[1746658548985,5.40923363,1818.2,1818.0,6.69034583]
[1746658551591,5.40923363,1818.2,1818.0,3.0]
[1746658554501,0.15694223,1818.2,1818.0,3.0]
[1746658554861,5.49969222,1818.3,1818.0,8.80701347]
[1746658555196,0.15561278,1818.1,1818.0,8.80701347]
[1746658555381,5.49969222,1818.3,1818.0,8.80701347]
[1746658555561,0.15561278,1818.1,1818.0,8.80701347]
[1746658556296,5.49969222,1818.3,1818.0,8.80701347]
[1746658556496,0.15561278,1818.1,1818.0,3.30655175]
[1746658556698,5.49969222,1818.3,1818.0,3.30655175]
[1746658556900,0.15561278,1818.1,1818.0,3.30655175]
[1746658557100,5.49969222,1818.3,1818.0,3.30655175]
[1746658557300,0.15561278,1818.1,1818.0,3.30655175]
[1746658557499,0.15561278,1818.1,1818.0,8.8071018]
[1746658557734,6.2938591,1818.4,1818.0,8.8071018]
[1746658558006,0.62938591,1818.3,1818.0,8.8071018]
[1746658558174,0.15561278,1818.2,1818.0,8.50055005]
[1746658558373,5.49972582,1818.3,1818.0,8.50055005]
[1746658558807,0.15561278,1818.2,1818.0,8.50055005]
[1746658559614,0.15561278,1818.2,1818.1,1.86213918]
[1746658559818,6.2938591,1818.4,1818.1,7.36238669]
[1746658559988,0.15561278,1818.3,1818.1,7.41738353]
[1746658560188,0.15561278,1818.3,1818.1,1.91713602]
[1746658560389,0.15561278,1818.3,1818.1,1.86213918]
[1746658561007,5.65529135,1818.3,1818.1,1.86213918]
[1746658562077,5.65529135,1818.3,1818.1,2.16886975]
[1746658563515,5.65529135,1818.3,1818.1,1.86213918]
[1746658564110,0.15561278,1818.3,1818.1,7.3623691]
[1746658564297,0.15561278,1818.3,1818.2,0.7838]
[1746658564495,0.15561278,1818.3,1818.1,1.86213918]
[1746658564679,0.15561278,1818.3,1818.1,2.64593918]
[1746658565410,0.15561278,1818.3,1818.1,2.95268202]
[1746658565794,5.65526727,1818.3,1818.1,2.95268202]
[1746658566128,5.65526727,1818.3,1818.1,2.16888202]
[1746658566691,5.50526727,1818.3,1818.1,2.16888202]
[1746658566890,5.64253273,1818.3,1818.1,2.16888202]
[1746658569913,5.64253273,1818.3,1818.2,0.30674284]
[1746658571434,0.14287824,1818.3,1818.2,0.30674284]
[1746658573023,5.64252076,1818.3,1818.2,0.30674284]
[1746658574939,5.42168411,1818.3,1818.2,0.30674284]
[1746658575121,5.55210837,1818.3,1818.2,0.30674284]
[1746658580337,0.13042426,1818.3,1818.2,0.30674284]
[1746658582538,5.62977867,1818.4,1818.3,0.30674284]
[1746658583146,0.13042426,1818.4,1818.3,0.30674284]
[1746658584049,0.1314409,1818.4,1818.3,0.30674284]
[1746658584235,5.49889577,1818.6,1818.3,0.30674284]
[1746658584435,0.1314409,1818.5,1818.4,0.30674284]
[1746658586420,0.1314409,1818.5,1818.4,7.66822209]
[1746658586822,5.49827076,1818.8,1818.5,8.49900823]
[1746658587459,5.49827076,1818.8,1818.6,0.30674284]
[1746658589763,6.30733931,1819.0,1818.6,8.45024738]
[1746658589949,5.49763931,1819.0,1818.6,8.45024738]
[1746658590159,6.31621172,1818.9,1818.6,2.16888202]
[1746658590340,5.49816136,1818.8,1818.6,0.30674284]
[1746658590964,11.81432099,1818.9,1818.6,2.16888202]
[1746658591171,11.81432099,1818.9,1818.6,5.85446628]
[1746658591172,6.31621172,1818.9,1818.6,5.85446628]
[1746658591533,5.49826284,1818.8,1818.6,5.85446628]
[1746658591760,6.31621172,1818.9,1818.6,5.85446628]
[1746658592165,5.49801172,1818.9,1818.6,5.85446628]
[1746658593528,0.1340211,1818.8,1818.6,5.85446628]
[1746658594037,0.1340211,1818.8,1818.6,12.17216875]
[1746658594648,0.1340211,1818.8,1818.6,6.67346628]
[1746658595494,0.1340211,1818.8,1818.6,6.36672344]
[1746658595695,0.1340211,1818.8,1818.6,3.68558426]
[1746658595982,5.49843294,1818.7,1818.6,6.68558426]
[1746658596148,5.63565965,1818.7,1818.6,6.68558426]
[1746658596549,0.13722671,1818.7,1818.6,6.68558426]
[1746658596855,0.13722671,1818.7,1818.6,3.0]
[1746658599868,5.63565965,1818.7,1818.6,3.0]
[1746658600583,5.56070308,1818.7,1818.6,3.0]
[1746658601791,0.13707037,1818.7,1818.6,3.0]
[1746658604296,5.63550331,1818.7,1818.6,3.0]
[1746658604892,0.13707037,1818.7,1818.6,3.0]
[1746658609017,0.13707037,1818.7,1818.6,3.30672849]
[1746658610306,0.13707037,1818.7,1818.6,0.30672849]
[1746658617115,5.49818428,1818.8,1818.6,0.30672849]
[1746658617413,0.1249312,1818.7,1818.6,0.30672849]
[1746658619023,5.37295118,1818.9,1818.6,0.30672849]
[1746658619511,5.61265477,1818.8,1818.6,0.30672849]
[1746658619718,5.61265477,1818.8,1818.7,0.30672849]
[1746658621821,9.38085454,1818.8,1818.7,0.30672849]
[1746658622022,7.51871536,1818.8,1818.7,0.30672849]
[1746658622524,5.49843294,1818.7,1818.6,3.68558426]
[1746658623020,5.61170231,1818.7,1818.6,3.68558426]
[1746658623201,0.11326937,1818.7,1818.6,3.68558426]
[1746658623398,0.11326937,1818.7,1818.6,3.99231275]
[1746658623615,0.11326937,1818.7,1818.6,0.30672849]
[1746658623927,5.49815357,1818.8,1818.6,0.30672849]
[1746658624125,0.11326937,1818.7,1818.6,0.30672849]
[1746658625317,15.68785414,1818.9,1818.6,0.30672849]
[1746658625499,0.11334755,1818.7,1818.6,0.30672849]
[1746658625699,15.68785414,1818.9,1818.6,0.30672849]
[1746658626034,0.11334755,1818.7,1818.6,0.30672849]
[1746658626634,15.68785414,1818.9,1818.6,5.80546378]
[1746658626801,0.11334755,1818.7,1818.6,5.80546378]
[1746658627001,15.68785414,1818.9,1818.6,5.80546378]
[1746658627201,0.11334755,1818.7,1818.6,5.80546378]
[1746658627429,15.68785414,1818.9,1818.6,5.80546378]
[1746658627430,10.19,1818.9,1818.7,6.26085081]
[1746658627603,10.19,1818.9,1818.7,8.12298999]
[1746658627804,6.32093858,1819.1,1818.8,0.30672849]
[1746658628303,11.8183926,1819.1,1818.8,0.30672849]
[1746658628829,5.49711689,1819.2,1818.8,5.85968134]
[1746658629058,10.99431642,1819.2,1818.9,0.30672849]
[1746658629337,5.4974155,1819.1,1818.9,0.30672849]
[1746658629700,5.4974155,1819.1,1818.8,3.05497579]
[1746658629900,5.4974155,1819.1,1818.8,8.55309947]
[1746658630112,5.49711689,1819.2,1818.8,8.55309947]
[1746658630312,10.99426896,1819.2,1818.8,8.55309947]
[1746658631435,10.99426896,1819.2,1818.9,6.62829462]
[1746658631436,5.49722416,1819.1,1818.9,6.62829462]
[1746658631630,0.8236,1819.3,1818.9,6.62829462]
[1746658631836,5.49726181,1819.1,1818.9,6.62829462]
[1746658633257,5.49726181,1819.1,1818.9,3.68558426]
[1746658634152,5.49726181,1819.1,1818.9,3.99313153]
[1746658636052,5.49752611,1819.0,1818.9,3.99313153]
[1746658636354,5.49744298,1819.1,1818.9,3.99313153]
[1746658637756,5.49707636,1819.2,1818.9,3.99313153]
[1746658637952,5.49707636,1819.2,1818.9,11.60660261]
[1746658638125,6.3203767,1819.3,1818.9,11.60660261]
[1746658638452,5.49694657,1819.2,1818.9,11.29905534]
[1746658638652,5.61459348,1819.2,1818.9,11.29905534]
[1746658639358,5.61459348,1819.2,1819.0,0.30727411]
[1746658639660,0.11764691,1819.2,1819.0,1.63795326]
[1746658639856,0.11764691,1819.2,1819.0,0.30727411]
[1746658641033,5.61457554,1819.2,1819.0,0.30727411]
[1746658642365,5.61457554,1819.2,1818.9,9.96837619]
[1746658642569,5.61457554,1819.2,1819.0,3.68558426]
[1746658643066,5.61470862,1819.2,1819.0,3.68558426]
[1746658644569,5.61470862,1819.2,1818.9,9.96840969]
[1746658644939,11.11186294,1819.2,1818.9,4.47058426]
[1746658645151,5.61470862,1819.2,1818.9,3.68558426]
[1746658645334,5.61470862,1819.2,1818.9,3.99259567]
[1746658646684,5.49733048,1819.1,1818.9,3.99259567]
[1746658646969,0.11803773,1819.0,1818.9,3.99259567]
[1746658648167,0.92893773,1819.0,1818.9,3.68558426]
[1746658648347,1.57156455,1819.0,1818.9,3.68558426]
[1746658648974,7.069185,1819.0,1818.8,6.68558426]
[1746658649160,12.56693274,1819.0,1818.8,6.68558426]
[1746658649870,11.92430592,1819.0,1818.8,6.68558426]
[1746658650070,6.42655818,1819.0,1818.8,6.68558426]